fUST/lending_fUST_20250718
["ID","MTS","AMOUNT","RATE_DAILY","PERIOD"]
[372955347,1752820235590,-460.0,0.00018356,2]
[372955348,1752820235599,-175.49,0.00018356,2]
[372955349,1752820235609,-1094.37702022,0.00018452,2]
[372955350,1752820235619,-949.27,0.00018629,2]
[372955351,1752820235628,-460.0,0.0001863,2]
[372955352,1752820235639,-460.0,0.0001863,2]
[372955353,1752820235651,-194.25,0.0001863,2]
[372955354,1752820235662,-1568.48,0.0001863,2]
[372955355,1752820235672,-1341.88,0.0001863,2]
[372955356,1752820235684,-328.8,0.0001863,2]
[372955357,1752820235693,-460.0,0.0001863,2]
[372955358,1752820235703,-460.0,0.0001863,2]
[372955359,1752820235715,-460.0,0.0001863,2]
[372955360,1752820235730,-676.88,0.0001863,2]
[372955361,1752820235740,-534.21,0.0001863,2]
[372955362,1752820235750,-478.99,0.0001863,2]
[372955363,1752820235760,-226.16719161,0.0001863,2]
[372955364,1752820235770,-1086.82,0.0001863,2]
[372955365,1752820235781,-460.0,0.0001863,2]
[372955366,1752820235791,-869.99,0.0001863,2]
[372955367,1752820235802,-460.0,0.0001863,2]
[372955368,1752820235812,-460.0,0.0001863,2]
[372955369,1752820235822,-734.34,0.0001863,2]
[372955370,1752820235831,-460.0,0.0001863,2]
[372955371,1752820235841,-852.47,0.0001863,2]
[372955372,1752820235851,-460.0,0.0001863,2]
[372955373,1752820235860,-1699.85,0.0001863,2]
[372955374,1752820235870,-460.0,0.0001863,2]
[372955375,1752820236003,-460.0,0.0001863,2]
[372955376,1752820236014,-460.0,0.0001863,2]
[372955377,1752820236024,-460.0,0.0001863,2]
[372955378,1752820236034,-1094.37702022,0.00018728,2]
[372955379,1752820236044,-1307.31961092,0.000189,2]
[372955380,1752820236054,-949.27,0.00018903,2]
[372955381,1752820236064,-460.0,0.00018904,2]
[372955382,1752820236074,-460.0,0.00018904,2]
[372955383,1752820236084,-1568.48,0.00018904,2]
[372955384,1752820236094,-1341.88,0.00018904,2]
[372955385,1752820236104,-460.0,0.00018904,2]
[372955386,1752820236114,-460.0,0.00018904,2]
[372955387,1752820236124,-451.04,0.00018904,2]
[372955388,1752820236133,-676.88,0.00018904,2]
[372955389,1752820236143,-1086.82,0.00018904,2]
[372955390,1752820236154,-460.0,0.00018904,2]
[372955391,1752820236164,-869.99,0.00018904,2]
[372955392,1752820236174,-460.0,0.00018904,2]
[372955393,1752820236184,-734.34,0.00018904,2]
[372955394,1752820236194,-460.0,0.00018904,2]
[372955395,1752820236203,-852.47,0.00018904,2]
[372955396,1752820236214,-460.0,0.00018904,2]
[372955397,1752820236224,-1699.85,0.00018904,2]
[372955398,1752820236234,-460.0,0.00018904,2]
[372955399,1752820236243,-460.0,0.00018904,2]
[372955400,1752820236252,-1094.37702022,0.00019003,2]
[372955401,1752820236262,-949.27,0.00019177,2]
[372955402,1752820236272,-460.0,0.00019178,2]
[372955403,1752820236281,-460.0,0.00019178,2]
[372955404,1752820236292,-1568.48,0.00019178,2]
[372955405,1752820236301,-1341.88,0.00019178,2]
[372955406,1752820236310,-460.0,0.00019178,2]
[372955407,1752820236320,-460.0,0.00019178,2]
[372955408,1752820236330,-676.88,0.00019178,2]
[372955409,1752820236339,-1086.82,0.00019178,2]
[372955410,1752820236349,-460.0,0.00019178,2]
[372955411,1752820236358,-869.99,0.00019178,2]
[372955412,1752820236368,-460.0,0.00019178,2]
[372955413,1752820236377,-734.34,0.00019178,2]
[372955414,1752820236386,-200.72,0.00019178,2]
[372955415,1752820236396,-852.47,0.00019178,2]
[372955416,1752820236406,-499.3,0.00019178,2]
[372955417,1752820236415,-1699.85,0.00019178,2]
[372955418,1752820236425,-460.0,0.00019178,2]
[372955419,1752820236435,-460.0,0.00019178,2]
[372955420,1752820236445,-666.0,0.00019178,2]
[372955421,1752820236455,-1094.37702022,0.00019279,2]
[372955422,1752820236468,-197.21538912,0.00019288,3]
[372955423,1752820236488,-485.22205825,0.0001935,2]
[372955424,1752820236499,-460.0,0.00019451,2]
[372955425,1752820236511,-460.72845538,0.00019451,2]
[372955426,1752820236520,-505.50893237,0.00019451,2]
[372955427,1752820236530,-460.86245414,0.00019451,2]
[372955428,1752820236540,-460.0,0.00019451,2]
[372955429,1752820236551,-460.0,0.00019451,2]
[372955430,1752820236561,-460.0,0.00019451,2]
[372955431,1752820236573,-460.0,0.00019451,2]
[372955432,1752820236586,-500.0,0.00019451,2]
[372955433,1752820236603,-460.0,0.00019451,2]
[372955434,1752820236613,-460.0,0.00019451,2]
[372955435,1752820236624,-461.06320191,0.00019451,2]
[372955436,1752820236635,-460.0,0.00019452,2]
[372955437,1752820236645,-460.0,0.00019452,2]
[372955438,1752820236656,-1568.48,0.00019452,2]
[372955439,1752820236667,-1341.88,0.00019452,2]
[372955440,1752820236677,-460.0,0.00019452,2]
[372955441,1752820236688,-460.0,0.00019452,2]
[372955442,1752820236697,-676.88,0.00019452,2]
[372955443,1752820236707,-1086.82,0.00019452,2]
[372955444,1752820236719,-460.0,0.00019452,2]
[372955445,1752820236728,-869.99,0.00019452,2]
[372955446,1752820236738,-460.0,0.00019452,2]
[372955447,1752820236747,-734.34,0.00019452,2]
[372955448,1752820236756,-852.47,0.00019452,2]
[372955449,1752820236765,-1699.85,0.00019452,2]
[372955450,1752820236774,-460.0,0.00019452,2]
[372955451,1752820236783,-460.0,0.00019452,2]
[372955452,1752820236793,-1094.37702022,0.00019555,2]
[372955453,1752820236802,-214.75,0.0001965,2]
[372955454,1752820236812,-461.4521134,0.00019725,2]
[372955455,1752820236821,-465.84435024,0.00019725,2]
[372955456,1752820236830,-460.0,0.00019725,2]
[372955457,1752820236840,-460.0,0.00019725,2]
[372955458,1752820236849,-460.0,0.00019726,2]
[372955459,1752820236860,-460.0,0.00019726,2]
[372955460,1752820236870,-1568.48,0.00019726,2]
[372955461,1752820236880,-1341.88,0.00019726,2]
[372955462,1752820236891,-460.0,0.00019726,2]
[372955463,1752820236900,-460.0,0.00019726,2]
[372955464,1752820236910,-676.88,0.00019726,2]
[372955465,1752820236919,-1086.82,0.00019726,2]
[372955466,1752820236928,-460.0,0.00019726,2]
[372955467,1752820236938,-869.99,0.00019726,2]
[372955468,1752820236947,-460.0,0.00019726,2]
[372955469,1752820236956,-734.34,0.00019726,2]
[372955470,1752820236968,-852.47,0.00019726,2]
[372955471,1752820236977,-1699.85,0.00019726,2]
[372955472,1752820236987,-460.0,0.00019726,2]
[372955473,1752820236996,-157.12,0.00019726,2]
[372955474,1752820237006,-1094.37702022,0.00019831,2]
[372955475,1752820237015,-6767.59962533,0.00019989,2]
[372955476,1752820237024,-460.0,0.00019999,2]
[372955477,1752820237033,-460.0,0.0002,2]
[372955478,1752820237042,-460.0,0.0002,2]
[372955479,1752820237053,-1568.48,0.0002,2]
[372955480,1752820237062,-1341.88,0.0002,2]
[372955481,1752820237071,-206.64,0.0002,2]
[372955482,1752820237081,-460.0,0.0002,2]
[372955483,1752820237090,-676.88,0.0002,2]
[372955484,1752820237100,-1086.82,0.0002,2]
[372955485,1752820237109,-460.0,0.0002,2]
[372955486,1752820237118,-869.99,0.0002,2]
[372955487,1752820237128,-460.0,0.0002,2]
[372955488,1752820237138,-734.34,0.0002,2]
[372955489,1752820237147,-852.47,0.0002,2]
[372955490,1752820237156,-1699.85,0.0002,2]
[372955491,1752820237165,-460.0,0.0002,2]
[372955492,1752820237175,-1094.37702022,0.00020107,2]
[372955493,1752820237185,-300.252988,0.00020187,2]
[372955494,1752820237194,-460.0,0.00020273,2]
[372955495,1752820237203,-460.0,0.00020273,2]
[372955496,1752820237213,-575.91424909,0.00020273,2]
[372955497,1752820237223,-1568.48,0.00020273,2]
[372955498,1752820237232,-1341.88,0.00020273,2]
[372955499,1752820237242,-460.0,0.00020273,2]
[372955500,1752820237251,-676.88,0.00020273,2]
[372955501,1752820237260,-1086.82,0.00020273,2]
[372955502,1752820237269,-460.0,0.00020273,2]
[372955503,1752820237279,-869.99,0.00020273,2]
[372955505,1752820237288,-460.0,0.00020273,2]
[372955506,1752820237297,-734.34,0.00020273,2]
[372955507,1752820237307,-852.47,0.00020273,2]
[372955508,1752820237316,-1699.85,0.00020273,2]
[372955509,1752820237325,-338.84,0.00020273,2]
[372955510,1752820237335,-500.40777051,0.00020313,2]
[372955511,1752820237345,-1094.37702022,0.00020383,3]
[372955512,1752820237354,-2195.19610139,0.00020447,2]
[372955513,1752820237364,-460.0,0.00020547,2]
[372955514,1752820237373,-460.0,0.00020547,2]
[372955515,1752820237383,-1568.48,0.00020547,2]
[372955516,1752820237392,-1341.88,0.00020547,2]
[372955517,1752820237402,-460.0,0.00020547,2]
[372955518,1752820237411,-676.88,0.00020547,2]
[372955519,1752820237420,-1086.82,0.00020547,2]
[372955520,1752820237430,-460.0,0.00020547,2]
[372955521,1752820237439,-869.99,0.00020547,2]
[372955522,1752820237449,-460.0,0.00020547,2]
[372955523,1752820237459,-734.34,0.00020547,2]
[372955524,1752820237470,-852.47,0.00020547,2]
[372955525,1752820237481,-1699.85,0.00020547,2]
[372955526,1752820237490,-1094.37702022,0.00020659,3]
[372955527,1752820237500,-150.0,0.00020666,2]
[372955528,1752820237511,-10526.46560873,0.00020739,2]
[372955529,1752820237521,-460.0,0.00020821,2]
[372955530,1752820237530,-460.0,0.00020821,2]
[372955531,1752820237540,-1568.48,0.00020821,2]
[372955532,1752820237551,-1341.88,0.00020821,2]
[372955533,1752820237562,-460.0,0.00020821,2]
[372955534,1752820237571,-676.88,0.00020821,2]
[372955535,1752820237581,-1086.82,0.00020821,2]
[372955536,1752820237591,-460.0,0.00020821,2]
[372955537,1752820237601,-869.99,0.00020821,2]
[372955538,1752820237611,-460.0,0.00020821,2]
[372955539,1752820237620,-734.34,0.00020821,2]
[372955540,1752820237630,-852.47,0.00020821,2]
[372955541,1752820237642,-1699.85,0.00020821,2]
[372955542,1752820237652,-178.80003706,0.00020896,2]
[372955543,1752820237665,-462.459,0.00020896,2]
[372955544,1752820237679,-168.0,0.00020932,3]
[372955545,1752820237691,-1094.37702022,0.00020934,4]
[372955546,1752820237703,-10907.28184364,0.0002099,2]
[372955547,1752820237731,-585.36,0.00017808,2]
[372955548,1752820237742,-4323.61142305,0.0002099,2]
[372955549,1752820237755,-38318.33517047,0.0002099,2]
[372955550,1752820237766,-460.0,0.00021095,2]
[372955551,1752820237776,-460.0,0.00021095,2]
[372955552,1752820237789,-1568.48,0.00021095,2]
[372955553,1752820237800,-1341.88,0.00021095,2]
[372955554,1752820237811,-381.81515429,0.00021095,2]
[372955555,1752820237822,-676.88,0.00021095,2]
[372955556,1752820237834,-1086.82,0.00021095,2]
[372955557,1752820237846,-460.0,0.00021095,2]
[372955558,1752820237858,-869.99,0.00021095,2]
[372955559,1752820237870,-560.01882759,0.00021095,2]
[372955560,1752820237882,-734.34,0.00021095,2]
[372955561,1752820237893,-852.47,0.00021095,2]
[372955562,1752820237904,-1699.85,0.00021095,2]
[372955564,1752820237915,-5000.0,0.00021137,2]
[372955565,1752820237928,-1094.37702022,0.0002121,4]
[372955566,1752820237939,-309.03,0.00021369,2]
[372955567,1752820237952,-460.0,0.00021369,2]
[372955568,1752820237965,-1568.48,0.00021369,2]
[372955569,1752820237977,-1341.88,0.00021369,2]
[372955570,1752820237992,-676.88,0.00021369,2]
[372955571,1752820238003,-1086.82,0.00021369,2]
[372955572,1752820238014,-460.0,0.00021369,2]
[372955573,1752820238026,-869.99,0.00021369,2]
[372955574,1752820238036,-734.34,0.00021369,2]
[372955575,1752820238047,-852.47,0.00021369,2]
[372955576,1752820238058,-1699.85,0.00021369,2]
[372955577,1752820238068,-1094.37702022,0.00021486,5]
[372955578,1752820238079,-276.49,0.00021643,2]
[372955579,1752820238091,-485.65181796,0.00021643,2]
[372955580,1752820238106,-1082.82818204,0.00021643,2]
[372955581,1752820238120,-1341.88,0.00021643,2]
[372955582,1752820238130,-676.88,0.00021643,2]
[372955583,1752820238143,-1086.82,0.00021643,2]
[372955584,1752820238154,-403.81206449,0.00021643,2]
[372955585,1752820238164,-85.81265597,0.00021643,2]
[372955586,1752820238177,-784.17734403,0.00021643,2]
[372955587,1752820238186,-734.34,0.00021643,2]
[372955588,1752820238197,-852.47,0.00021643,2]
[372955589,1752820238208,-158.27418407,0.00021643,2]
[372955590,1752820238285,276.15013097,0.00016438,2]
[372955591,1752820238332,460.0,0.00016438,2]
[372955592,1752820238606,-460.0,0.00016712,2]
[372955593,1752820238616,-160.84121819,0.00017259,2]
[372955594,1752820238626,-744.03179935,0.0001726,2]
[372955595,1752820238645,-218.92820065,0.0001726,2]
[372955596,1752820238656,-962.96,0.00017534,2]
[372955597,1752820238667,-962.96,0.00017808,2]
[372955598,1752820238677,-585.36,0.00018082,2]
[372955599,1752820238687,-962.96,0.00018082,2]
[372955600,1752820238697,-585.36,0.00018356,2]
[372955601,1752820238708,-962.96,0.00018356,2]
[372955602,1752820238720,-585.36,0.0001863,2]
[372955603,1752820238730,-962.96,0.0001863,2]
[372955604,1752820238741,-585.36,0.00018904,2]
[372955606,1752820238751,-962.96,0.00018904,2]
[372955608,1752820238762,-585.36,0.00019178,2]
[372955610,1752820238772,-962.96,0.00019178,2]
[372955612,1752820238783,-585.36,0.00019452,2]
[372955614,1752820238795,-962.96,0.00019452,2]
[372955616,1752820238805,-585.36,0.00019726,2]
[372955617,1752820238815,-220.46982335,0.00019726,2]
[372955706,1752820240163,-683.63590484,0.00019726,2]
[372955707,1752820240176,-58.85427181,0.00019726,2]
[372955708,1752820240186,-585.36,0.0002,2]
[372955709,1752820240196,-962.96,0.0002,2]
[372955710,1752820240206,-585.36,0.00020273,2]
[372955711,1752820240218,-962.96,0.00020273,2]
[372955714,1752820240241,-585.36,0.00020547,2]
[372955717,1752820240254,-962.96,0.00020547,2]
[372955719,1752820240267,-585.36,0.00020821,2]
[372955721,1752820240280,-962.96,0.00020821,2]
[372955724,1752820240292,-585.36,0.00021095,2]
[372955726,1752820240305,-19.24167435,0.00021095,2]
[372955729,1752820240319,-943.71832565,0.00021095,2]
[372955730,1752820240331,-585.36,0.00021369,2]
[372955732,1752820240343,-1541.57581593,0.00021643,2]
[372955733,1752820240354,-245.3395255,0.00021643,2]
[372955734,1752820240369,-340.0204745,0.00021643,2]
[372955735,1752820240380,-1094.37702022,0.00021762,5]
[372955736,1752820240391,-500.0,0.00021868,2]
[372955737,1752820240403,-5956.04084834,0.00021916,2]
[372955738,1752820240414,-1568.48,0.00021917,2]
[372955739,1752820240426,-1341.88,0.00021917,2]
[372955740,1752820240437,-676.88,0.00021917,2]
[372955741,1752820240449,-578.15110136,0.00021917,2]
[372955742,1752820240470,-508.66889864,0.00021917,2]
[372955743,1752820240482,-258.42293936,0.00021917,2]
[372955745,1752820240496,-611.56706064,0.00021917,2]
[372955746,1752820240507,-734.34,0.00021917,2]
[372955747,1752820240520,-655.54122138,0.00021917,2]
[372955815,1752820243190,-483.40477571,0.00021369,2]
[372955818,1752820243204,-479.55522429,0.00021369,2]
[372955820,1752820243216,-5.31612365,0.00021643,2]
[372956312,1752820256703,-957.64387635,0.00021643,2]
[372956313,1752820256714,-196.92877862,0.00021917,2]
[372956314,1752820256726,-1699.85,0.00021917,2]
[372956315,1752820256736,-585.36,0.00021917,2]
[372956316,1752820256745,-962.96,0.00021917,2]
[372956317,1752820256754,-853.33768381,0.00021938,2]
[372956318,1752820256763,-9599.04,0.00022,7]
[372956319,1752820256775,-2044.3,0.00022,7]
[372956320,1752820256785,-25627.16,0.00022,2]
[372956321,1752820256795,-1094.37702022,0.00022038,6]
[372956322,1752820256804,-1568.48,0.00022191,2]
[372956323,1752820256814,-1341.88,0.00022191,2]
[372956324,1752820256825,-676.88,0.00022191,2]
[372956325,1752820256834,-1086.82,0.00022191,2]
[372956326,1752820256845,-869.99,0.00022191,2]
[372956327,1752820256855,-734.34,0.00022191,2]
[372956328,1752820256865,-852.47,0.00022191,2]
[372956329,1752820256875,-1699.85,0.00022191,2]
[372956330,1752820256885,-585.36,0.00022191,2]
[372956331,1752820256894,-962.96,0.00022191,2]
[372956332,1752820256903,-1094.37702022,0.00022314,7]
[372956333,1752820256913,-1568.48,0.00022465,2]
[372956334,1752820256922,-1341.88,0.00022465,2]
[372956335,1752820256932,-676.88,0.00022465,2]
[372956336,1752820256942,-1086.82,0.00022465,2]
[372956337,1752820256951,-869.99,0.00022465,2]
[372956338,1752820256961,-734.34,0.00022465,2]
[372956339,1752820256970,-852.47,0.00022465,2]
[372956340,1752820256982,-1699.85,0.00022465,2]
[372956341,1752820256991,-585.36,0.00022465,2]
[372956342,1752820257001,-962.96,0.00022465,2]
[372956343,1752820257011,-4229.06,0.0002248,10]
[372956344,1752820257021,-67747.69103999,0.0002249,7]
[372956345,1752820257031,-150.0,0.00022544,2]
[372956346,1752820257041,-169.0,0.00022575,7]
[372956347,1752820257054,-1094.37702022,0.0002259,7]
[372956348,1752820257064,-151.0,0.00022596,2]
[372956349,1752820257074,-151.0,0.00022596,2]
[372956350,1752820257085,-207.4,0.00022596,2]
[372956351,1752820257094,-151.0,0.00022596,2]
[372956352,1752820257104,-151.0,0.00022596,2]
[372956353,1752820257114,-151.0,0.00022596,2]
[372956354,1752820257123,-3801.642,0.00022596,2]
[372956355,1752820257133,-151.0,0.00022596,2]
[372956356,1752820257143,-151.0,0.00022596,2]
[372956357,1752820257152,-151.0,0.00022596,2]
[372956358,1752820257162,-151.0,0.00022596,2]
[372956359,1752820257174,-151.0,0.00022596,2]
[372956360,1752820257184,-151.0,0.00022596,2]
[372956361,1752820257195,-151.0,0.00022596,2]
[372956362,1752820257204,-151.0,0.00022596,2]
[372956363,1752820257214,-151.0,0.00022596,2]
[372956364,1752820257224,-151.0,0.00022596,2]
[372956365,1752820257233,-151.0,0.00022596,2]
[372956366,1752820257243,-151.0,0.00022596,2]
[372956367,1752820257253,-151.0,0.00022596,2]
[372956368,1752820257262,-151.0,0.00022596,2]
[372956369,1752820257272,-151.0,0.00022596,2]
[372956370,1752820257282,-151.0,0.00022596,2]
[372956371,1752820257291,-151.0,0.00022596,2]
[372956372,1752820257300,-151.0,0.00022596,2]
[372956373,1752820257309,-151.0,0.00022596,2]
[372956374,1752820257319,-151.0,0.00022596,2]
[372956375,1752820257328,-151.0,0.00022596,2]
[372956376,1752820257337,-151.0,0.00022596,2]
[372956377,1752820257347,-151.0,0.00022596,2]
[372956378,1752820257358,-151.0,0.00022596,2]
[372956379,1752820257369,-151.0,0.00022596,2]
[372956380,1752820257379,-151.0,0.00022596,2]
[372956381,1752820257388,-151.0,0.00022596,2]
[372956382,1752820257399,-151.0,0.00022596,2]
[372956383,1752820257408,-151.0,0.00022596,2]
[372956384,1752820257418,-159.14388846,0.00022596,2]
[372956385,1752820257428,-25000.0,0.00022596,2]
[372956386,1752820257438,-177.748,0.00022603,2]
[372956387,1752820257447,-647.0,0.00022654,2]
[372956388,1752820257457,-407.0,0.00022654,2]
[372956389,1752820257467,-2195.19610138,0.00022674,2]
[372956390,1752820257482,-853.33768379,0.00022679,2]
[372956391,1752820257492,-1568.59646743,0.00022739,2]
[372956392,1752820257501,-1341.89471596,0.00022739,2]
[372956393,1752820257511,-677.05477395,0.00022739,2]
[372956394,1752820257521,-1086.93301977,0.00022739,2]
[372956395,1752820257530,-870.01474935,0.00022739,2]
[372956396,1752820257539,-734.54,0.00022739,2]
[372956397,1752820257549,-852.62960387,0.00022739,2]
[372956398,1752820257558,-1699.92801078,0.00022739,2]
[372956399,1752820257569,-585.38843973,0.00022739,2]
[372956400,1752820257578,-963.00084423,0.00022739,2]
[372956401,1752820257588,-1094.37702022,0.00022866,8]
[372956402,1752820257598,-500.0,0.00022964,2]
[372956403,1752820257608,-884.88,0.00023,2]
[372956404,1752820257618,-968.0,0.0002314,2]
[372956405,1752820257627,-1094.37702022,0.00023141,8]
[372956406,1752820257637,-1085.74,0.000232,7]
[372956407,1752820257647,-9599.04,0.000233,7]
[372956408,1752820257657,-2044.3,0.000233,7]
[372956409,1752820257667,-1094.37702022,0.00023417,9]
[372956410,1752820257677,-853.33768379,0.00023419,2]
[372956411,1752820257686,-25627.16,0.000235,2]
[372956412,1752820257696,-214.75,0.00023568,2]
[372956413,1752820257705,-228.0,0.00023575,2]
[372956414,1752820257714,-228.0,0.00023666,2]
[372956415,1752820257723,-1094.37702022,0.00023693,9]
[372956416,1752820257733,-819.39482928,0.000237,30]
[372956417,1752820257742,-153.0,0.00023863,2]
[372956418,1752820257751,-153.0,0.00023863,2]
[372956419,1752820257760,-306.0,0.00023863,2]
[372956420,1752820257769,-1307.31961092,0.000239,2]
[372956421,1752820257778,-215.0738,0.00023965,2]
[372956422,1752820257787,-228.0,0.00023966,2]
[372956423,1752820257796,-1094.37702022,0.00023969,10]
[372956424,1752820257805,-160.0,0.00024,7]
[372956425,1752820257815,-1000.0,0.00024,2]
[372956426,1752820257824,-1000.0,0.00024,2]
[372956427,1752820257833,-1000.0,0.00024,2]
[372956428,1752820257842,-1000.0,0.00024,2]
[372956429,1752820257851,-1000.0,0.00024,2]
[372956430,1752820257860,-1000.0,0.00024,2]
[372956431,1752820257869,-1000.0,0.00024,2]
[372956432,1752820257879,-1000.0,0.00024,2]
[372956433,1752820257887,-1000.0,0.00024,2]
[372956434,1752820257896,-1000.0,0.00024,2]
[372956435,1752820257905,-1000.0,0.00024,2]
[372956436,1752820257914,-1000.0,0.00024,2]
[372956437,1752820257923,-1000.0,0.00024,2]
[372956438,1752820257932,-1000.0,0.00024,2]
[372956439,1752820257941,-1000.0,0.00024,2]
[372956440,1752820257950,-1000.0,0.00024,2]
[372956441,1752820257960,-1000.0,0.00024,2]
[372956442,1752820257969,-792.96,0.00024,2]
[372956443,1752820257979,-121119.6641749,0.00024,5]
[372956444,1752820257988,-230.89969799,0.00024,7]
[372956445,1752820257998,-160.0,0.00024,7]
[372956446,1752820258007,-525.75194068,0.00024,7]
[372956447,1752820258016,-525.75194068,0.00024,10]
[372956448,1752820258026,-839.30593155,0.00024,7]
[372956449,1752820258035,-853.33768379,0.0002416,2]
[372956450,1752820258045,-151.0,0.000242,9]
[372956451,1752820258055,-171.0,0.00024219,12]
[372956452,1752820258064,-1094.37702022,0.00024245,10]
[372956453,1752820258074,-150.0,0.00024321,2]
[372956454,1752820258084,-459.966099,0.00024401,8]
[372956455,1752820258093,-228.0,0.00024406,2]
[372956456,1752820258103,-228.0,0.00024425,2]
[372956457,1752820258112,-228.0,0.00024476,2]
[372956458,1752820258121,-1094.37702022,0.00024521,11]
[372956459,1752820258131,-214.75,0.00024547,2]
[372956460,1752820258141,-51231.29243706,0.0002465,2]
[372956461,1752820258150,-380.0,0.00024658,2]
[372956462,1752820258160,-500.0,0.00024658,2]
[372956463,1752820258169,-202.36717109,0.00024658,2]
[372956464,1752820258178,-151.0,0.00024658,2]
[372956465,1752820258188,-248.54971097,0.00024658,2]
[372956466,1752820258197,-151.0,0.00024658,2]
[372956467,1752820258207,-151.0,0.00024658,2]
[372956468,1752820258217,-151.0,0.00024658,2]
[372956469,1752820258227,-151.0,0.00024658,2]
[372956470,1752820258236,-151.0,0.00024658,2]
[372956471,1752820258246,-790.0,0.00024658,2]
[372956472,1752820258256,-151.0,0.00024658,2]
[372956473,1752820258265,-151.0,0.00024658,2]
[372956474,1752820258275,-500.0,0.00024658,2]
[372956475,1752820258284,-151.43518209,0.00024658,2]
[372956476,1752820258293,-151.0,0.00024658,2]
[372956477,1752820258303,-151.0,0.00024658,2]
[372956478,1752820258312,-151.0,0.00024658,2]
[372956479,1752820258321,-151.0,0.00024658,2]
[372956480,1752820258331,-500.0,0.00024658,2]
[372956481,1752820258340,-239.64901947,0.00024658,2]
[372956482,1752820258349,-500.0,0.00024658,2]
[372956483,1752820258359,-151.0,0.00024658,2]
[372956484,1752820258368,-500.0,0.00024658,2]
[372956485,1752820258378,-151.28514875,0.00024658,2]
[372956486,1752820258387,-151.29289508,0.00024658,2]
[372956487,1752820258397,-151.45705446,0.00024658,2]
[372956488,1752820258406,-202.03156019,0.00024658,2]
[372956489,1752820258415,-151.0,0.00024658,2]
[372956490,1752820258425,-151.0,0.00024658,2]
[372956491,1752820258434,-151.0,0.00024658,2]
[372956492,1752820258443,-151.0,0.00024658,2]
[372956493,1752820258453,-151.0,0.00024658,2]
[372956494,1752820258462,-151.0,0.00024658,2]
[372956495,1752820258473,-151.0,0.00024658,2]
[372956496,1752820258486,-151.0,0.00024658,2]
[372956497,1752820258496,-151.0,0.00024658,2]
[372956498,1752820258507,-151.0,0.00024658,2]
[372956499,1752820258519,-151.0,0.00024658,2]
[372956500,1752820258528,-500.0,0.00024658,2]
[372956501,1752820258538,-159.7855054,0.00024685,2]
[372956502,1752820258548,-180.5213547,0.00024685,2]
[372956503,1752820258558,-577.0505339,0.00024685,2]
[372956504,1752820258567,-159.7855054,0.00024685,2]
[372956505,1752820258576,-177.960412,0.00024685,2]
[372956506,1752820258586,-576.6654682,0.00024685,2]
[372956507,1752820258595,-159.7323414,0.00024685,2]
[372956508,1752820258605,-9599.04,0.000247,7]
[372956509,1752820258614,-2044.3,0.000247,7]
[372956510,1752820258624,-25627.16,0.000247,2]
[372956511,1752820258633,-231.86930555,0.00024743,5]
[372956512,1752820258642,-227.44898012,0.00024743,5]
[372956513,1752820258652,-28558.31015152,0.0002475,2]
[372956514,1752820258661,-228.0,0.00024784,2]
[372956515,1752820258670,-168.6492421,0.00024785,2]
[372956516,1752820258680,-1094.37702022,0.00024797,11]